[Event "*** Titled Tuesday Blitz"]
[Site "Chess.com"]
[Date "2021.03.16"]
[Round "3"]
[White "CraiggoryC"]
[Black "Oligan22"]
[Result "0-1"]
[WhiteElo "2282"]
[BlackElo "2506"]
[TimeControl "180+1"]
[EndTime "10:27:57 PDT"]
[Termination "Oligan22 won on time"]

1. e4 {[%clk 0:01:01.5]} 1... c6 {[%clk 0:02:56]} 2. Nf3 {[%clk 0:01:01.3]} 2...
d5 {[%clk 0:02:55.1]} 3. e5 {[%clk 0:01:02]} 3... d4 {[%clk 0:02:47.8]} 4. c3
{[%clk 0:01:01]} 4... c5 {[%clk 0:02:46.3]} 5. cxd4 {[%clk 0:01:00.4]} 5... cxd4
{[%clk 0:02:47.2]} 6. Bb5+ {[%clk 0:00:59.4]} 6... Nc6 {[%clk 0:02:47.8]} 7. Qa4
{[%clk 0:00:58.7]} 7... Bd7 {[%clk 0:02:46.7]} 8. Na3 {[%clk 0:00:46.9]} 8... a6
{[%clk 0:02:35.8]} 9. Bxc6 {[%clk 0:00:46.7]} 9... Bxc6 {[%clk 0:02:36.7]} 10.
Qxd4 {[%clk 0:00:46.2]} 10... Qxd4 {[%clk 0:02:36.8]} 11. Nxd4 {[%clk
0:00:47.1]} 11... Bxg2 {[%clk 0:02:37.3]} 12. Rg1 {[%clk 0:00:47.6]} 12... Bd5
{[%clk 0:02:37.4]} 13. Ke2 {[%clk 0:00:40.3]} 13... e6 {[%clk 0:02:37.3]} 14. b3
{[%clk 0:00:33.9]} 14... Ne7 {[%clk 0:02:18.2]} 15. Ke3 {[%clk 0:00:29.9]} 15...
Ng6 {[%clk 0:02:15.4]} 16. f4 {[%clk 0:00:29.9]} 16... Bc5 {[%clk 0:02:14.5]}
17. Bb2 {[%clk 0:00:23.4]} 17... Rd8 {[%clk 0:02:12.3]} 18. Rac1 {[%clk
0:00:20.1]} 18... b6 {[%clk 0:02:09.4]} 19. Nc2 {[%clk 0:00:18.5]} 19... O-O
{[%clk 0:02:06.9]} 20. b4 {[%clk 0:00:18.6]} 20... Be7 {[%clk 0:02:06.3]} 21. a3
{[%clk 0:00:18.2]} 21... Bb7 {[%clk 0:01:46.9]} 22. Ne1 {[%clk 0:00:17.8]} 22...
Rd7 {[%clk 0:01:43.4]} 23. Nc6 {[%clk 0:00:15.6]} 23... Bxc6 {[%clk 0:01:17.9]}
24. Rxc6 {[%clk 0:00:15]} 24... Bd8 {[%clk 0:01:18.8]} 25. d4 {[%clk 0:00:13.2]}
25... Ne7 {[%clk 0:01:19]} 26. Rd6 {[%clk 0:00:12.1]} 26... Nf5+ {[%clk
0:01:18.6]} 27. Ke4 {[%clk 0:00:11.7]} 27... Nxd6+ {[%clk 0:01:19.5]} 28. exd6
{[%clk 0:00:11.8]} 28... Rxd6 {[%clk 0:01:20.4]} 29. d5 {[%clk 0:00:12]} 29...
exd5+ {[%clk 0:01:17.4]} 30. Ke5 {[%clk 0:00:12]} 30... Bc7 {[%clk 0:01:07.7]}
31. Kf5 {[%clk 0:00:10.8]} 31... g6+ {[%clk 0:01:07.1]} 32. Kg4 {[%clk
0:00:09.5]} 32... Re8 {[%clk 0:01:07.3]} 33. Nf3 {[%clk 0:00:09.3]} 33... h5+
{[%clk 0:01:07.4]} 34. Kh4 {[%clk 0:00:08.6]} 34... Re4 {[%clk 0:01:07]} 35. Be5
{[%clk 0:00:08]} 35... Rd7 {[%clk 0:01:03.2]} 36. Rc1 {[%clk 0:00:07.6]} 36...
Bxe5 {[%clk 0:01:02.5]} 37. Nxe5 {[%clk 0:00:06.8]} 37... Rd8 {[%clk 0:00:57.7]}
38. Kg5 {[%clk 0:00:05.4]} 38... Kg7 {[%clk 0:00:46.8]} 39. Rc7 {[%clk
0:00:04.9]} 39... Rf8 {[%clk 0:00:42]} 40. Nc6 {[%clk 0:00:02.9]} 40... Rc4
{[%clk 0:00:28.1]} 0-1

[Event "*** Titled Tuesday Blitz"]
[Site "Chess.com"]
[Date "2021.03.16"]
[Round "3"]
[White "Vasily85"]
[Black "Buffy7"]
[Result "1-0"]
[WhiteElo "2435"]
[BlackElo "2621"]
[TimeControl "180+1"]
[EndTime "10:28:00 PDT"]
[Termination "Vasily85 won by resignation"]

1. d4 {[%clk 0:03:00.9]} 1... Nf6 {[%clk 0:02:59.3]} 2. Bg5 {[%clk 0:03:00.1]}
2... c5 {[%clk 0:02:57.5]} 3. d5 {[%clk 0:02:59.7]} 3... Qb6 {[%clk 0:02:57.4]}
4. Nc3 {[%clk 0:02:59.7]} 4... Qxb2 {[%clk 0:02:56]} 5. Bd2 {[%clk 0:02:59.9]}
5... Qb6 {[%clk 0:02:56.3]} 6. e4 {[%clk 0:02:59.3]} 6... d6 {[%clk 0:02:54.8]}
7. f4 {[%clk 0:02:59]} 7... g6 {[%clk 0:02:49.9]} 8. e5 {[%clk 0:02:55]} 8...
Nfd7 {[%clk 0:02:37.1]} 9. Rb1 {[%clk 0:02:33.3]} 9... Qd8 {[%clk 0:02:35.8]}
10. Nf3 {[%clk 0:02:25.2]} 10... Bg7 {[%clk 0:02:29.6]} 11. e6 {[%clk
0:02:12.2]} 11... fxe6 {[%clk 0:02:30]} 12. Ng5 {[%clk 0:02:12.7]} 12... Nf8
{[%clk 0:01:53]} 13. Bb5+ {[%clk 0:02:11.1]} 13... Bd7 {[%clk 0:01:53]} 14. dxe6
{[%clk 0:01:48.9]} 14... Bxb5 {[%clk 0:01:49.7]} 15. Rxb5 {[%clk 0:01:32.9]}
15... Qc8 {[%clk 0:01:39.9]} 16. O-O {[%clk 0:01:06.7]} 16... Nc6 {[%clk
0:01:37]} 17. f5 {[%clk 0:01:02]} 17... Nd4 {[%clk 0:01:28.4]} 18. Rb1 {[%clk
0:00:29.9]} 18... Qc6 {[%clk 0:01:21.7]} 19. fxg6 {[%clk 0:00:27.7]} 19... hxg6
{[%clk 0:01:20.4]} 20. Rf7 {[%clk 0:00:24.2]} 20... Bf6 {[%clk 0:01:17.1]} 21.
Nce4 {[%clk 0:00:22.9]} 21... Nfxe6 {[%clk 0:00:59.7]} 22. Nxf6+ {[%clk
0:00:18.2]} 22... exf6 {[%clk 0:01:00]} 23. Rxf6 {[%clk 0:00:19.1]} 23... Nxg5
{[%clk 0:00:57.7]} 24. Bxg5 {[%clk 0:00:20]} 24... O-O-O {[%clk 0:00:57.4]} 25.
Qg4+ {[%clk 0:00:19.2]} 25... Kb8 {[%clk 0:00:56.8]} 26. Rf7 {[%clk 0:00:18.6]}
26... Rc8 {[%clk 0:00:46.7]} 27. Rbxb7+ {[%clk 0:00:16.6]} 27... Qxb7 {[%clk
0:00:47.6]} 28. Rxb7+ {[%clk 0:00:17.1]} 28... Kxb7 {[%clk 0:00:48.5]} 29. Qd7+
{[%clk 0:00:17.5]} 29... Rc7 {[%clk 0:00:40.7]} 30. Qxd6 {[%clk 0:00:17.4]}
30... Re8 {[%clk 0:00:40.4]} 31. Qd5+ {[%clk 0:00:16.6]} 31... Kb6 {[%clk
0:00:38.8]} 32. h4 {[%clk 0:00:15.6]} 32... a5 {[%clk 0:00:32.1]} 33. Bd8 {[%clk
0:00:15.2]} 33... Rxd8 {[%clk 0:00:31.6]} 34. Qxd8 {[%clk 0:00:16.1]} 34... a4
{[%clk 0:00:32.4]} 35. c3 {[%clk 0:00:16.1]} 35... Ne2+ {[%clk 0:00:32]} 36. Kh2
{[%clk 0:00:15.3]} 36... Nxc3 {[%clk 0:00:32.9]} 37. Qb8+ {[%clk 0:00:15.3]}
37... Kc6 {[%clk 0:00:32.7]} 38. Qe8+ {[%clk 0:00:15.7]} 38... Rd7 {[%clk
0:00:29.6]} 39. Qxg6+ {[%clk 0:00:16.6]} 39... Kb7 {[%clk 0:00:24.4]} 40. h5
{[%clk 0:00:16.6]} 40... Nd5 {[%clk 0:00:21.7]} 41. h6 {[%clk 0:00:16.5]} 41...
Nf4 {[%clk 0:00:20.6]} 42. Qe4+ {[%clk 0:00:16.6]} 1-0

[Event "*** Titled Tuesday Blitz"]
[Site "Chess.com"]
[Date "2021.03.16"]
[Round "3"]
[White "nurgyulsalimova"]
[Black "Babas"]
[Result "1-0"]
[WhiteElo "2637"]
[BlackElo "2417"]
[TimeControl "180+1"]
[EndTime "10:28:04 PDT"]
[Termination "nurgyulsalimova won on time"]

1. Nf3 {[%clk 0:03:00.4]} 1... d5 {[%clk 0:02:56.7]} 2. e3 {[%clk 0:02:54.8]}
2... Nf6 {[%clk 0:02:56.8]} 3. c4 {[%clk 0:02:54.7]} 3... c6 {[%clk 0:02:56.7]}
4. b3 {[%clk 0:02:54.3]} 4... Bg4 {[%clk 0:02:57]} 5. Bb2 {[%clk 0:02:54.2]}
5... Nbd7 {[%clk 0:02:57.1]} 6. Be2 {[%clk 0:02:50.9]} 6... e6 {[%clk
0:02:57.5]} 7. h3 {[%clk 0:02:40.9]} 7... Bxf3 {[%clk 0:02:51.9]} 8. Bxf3 {[%clk
0:02:37.6]} 8... Bd6 {[%clk 0:02:52.4]} 9. O-O {[%clk 0:02:33.1]} 9... O-O
{[%clk 0:02:42.4]} 10. d4 {[%clk 0:02:33]} 10... Qe7 {[%clk 0:02:34]} 11. Nc3
{[%clk 0:02:27.9]} 11... dxc4 {[%clk 0:02:24.7]} 12. bxc4 {[%clk 0:02:27.4]}
12... e5 {[%clk 0:02:24.4]} 13. Qc2 {[%clk 0:02:22.9]} 13... Rfe8 {[%clk
0:02:16.8]} 14. Rab1 {[%clk 0:01:55.3]} 14... Rad8 {[%clk 0:02:11.5]} 15. Ba1
{[%clk 0:01:53.3]} 15... Nf8 {[%clk 0:01:59.6]} 16. Qa4 {[%clk 0:01:37.4]} 16...
Bb8 {[%clk 0:01:55.3]} 17. Ne2 {[%clk 0:01:26.9]} 17... Ng6 {[%clk 0:01:54.9]}
18. Ng3 {[%clk 0:01:14.1]} 18... e4 {[%clk 0:01:22.6]} 19. Be2 {[%clk 0:01:10]}
19... Nh4 {[%clk 0:01:19.3]} 20. Qb4 {[%clk 0:01:01.4]} 20... Qxb4 {[%clk
0:00:57.8]} 21. Rxb4 {[%clk 0:01:02.3]} 21... b6 {[%clk 0:00:57]} 22. a4 {[%clk
0:00:53.4]} 22... Bc7 {[%clk 0:00:57.1]} 23. a5 {[%clk 0:00:41.1]} 23... c5
{[%clk 0:00:23.5]} 24. dxc5 {[%clk 0:00:35.6]} 24... bxc5 {[%clk 0:00:20.4]} 25.
Rb7 {[%clk 0:00:35.7]} 25... Bxa5 {[%clk 0:00:15.4]} 26. Bxf6 {[%clk 0:00:26.9]}
26... gxf6 {[%clk 0:00:15.2]} 27. Bh5 {[%clk 0:00:27.6]} 27... Ng6 {[%clk
0:00:13.3]} 28. Nf5 {[%clk 0:00:24]} 28... Kf8 {[%clk 0:00:08.8]} 29. Rxa7
{[%clk 0:00:18.2]} 29... Bc3 {[%clk 0:00:07.6]} 30. Rb1 {[%clk 0:00:13.2]} 30...
Re5 {[%clk 0:00:05.6]} 31. g4 {[%clk 0:00:08.7]} 31... Ne7 {[%clk 0:00:01.7]}
32. Rbb7 {[%clk 0:00:07.3]} 1-0

[Event "*** Titled Tuesday Blitz"]
[Site "Chess.com"]
[Date "2021.03.16"]
[Round "3"]
[White "C_K_G"]
[Black "Hangar-18"]
[Result "0-1"]
[WhiteElo "1999"]
[BlackElo "2354"]
[TimeControl "180+1"]
[EndTime "10:28:06 PDT"]
[Termination "Hangar-18 won on time"]

1. e4 {[%clk 0:03:00.9]} 1... c6 {[%clk 0:02:59]} 2. Nf3 {[%clk 0:02:51.1]} 2...
d5 {[%clk 0:02:58.9]} 3. Nc3 {[%clk 0:02:51.3]} 3... Bg4 {[%clk 0:02:57.7]} 4.
exd5 {[%clk 0:02:49.8]} 4... cxd5 {[%clk 0:02:57.4]} 5. d4 {[%clk 0:02:50]} 5...
Nc6 {[%clk 0:02:56.8]} 6. h3 {[%clk 0:02:50.2]} 6... Bh5 {[%clk 0:02:55.1]} 7.
Be2 {[%clk 0:02:50]} 7... e6 {[%clk 0:02:54.7]} 8. O-O {[%clk 0:02:49.6]} 8...
Nf6 {[%clk 0:02:52.8]} 9. Be3 {[%clk 0:02:47.9]} 9... Bd6 {[%clk 0:02:51.5]} 10.
Re1 {[%clk 0:02:34.5]} 10... O-O {[%clk 0:02:50.6]} 11. a3 {[%clk 0:02:33.9]}
11... a6 {[%clk 0:02:50.6]} 12. b4 {[%clk 0:02:18.9]} 12... Rc8 {[%clk
0:02:48.5]} 13. Na4 {[%clk 0:02:17.3]} 13... Ne4 {[%clk 0:02:36.6]} 14. Nc5
{[%clk 0:02:14.6]} 14... Nc3 {[%clk 0:02:27.9]} 15. Qd2 {[%clk 0:02:09.7]} 15...
Nxe2+ {[%clk 0:02:24.9]} 16. Qxe2 {[%clk 0:02:09.4]} 16... Qc7 {[%clk
0:02:03.6]} 17. g4 {[%clk 0:02:05.2]} 17... Bg6 {[%clk 0:02:02.5]} 18. Rac1
{[%clk 0:01:55.7]} 18... h6 {[%clk 0:01:52.6]} 19. c4 {[%clk 0:01:53.9]} 19...
dxc4 {[%clk 0:01:44.1]} 20. Rxc4 {[%clk 0:01:52.6]} 20... Qb8 {[%clk 0:01:32.9]}
21. Rec1 {[%clk 0:01:50.9]} 21... Ne7 {[%clk 0:01:31.6]} 22. Nd7 {[%clk
0:01:50]} 22... Rxc4 {[%clk 0:01:22.3]} 23. Rxc4 {[%clk 0:01:45.9]} 23... Qa8
{[%clk 0:01:17.8]} 24. Nxf8 {[%clk 0:01:44.6]} 24... Qxf8 {[%clk 0:01:15.1]} 25.
Ne5 {[%clk 0:00:24.2]} 25... Be4 {[%clk 0:01:10.9]} 26. f3 {[%clk 0:00:20.4]}
26... Bd5 {[%clk 0:01:10.2]} 27. Rc1 {[%clk 0:00:18]} 27... f6 {[%clk
0:01:06.3]} 28. Nd7 {[%clk 0:00:17.8]} 28... Qe8 {[%clk 0:01:05.1]} 29. Nc5
{[%clk 0:00:16.1]} 29... Ng6 {[%clk 0:00:53.5]} 30. Kf2 {[%clk 0:00:12.8]} 30...
Nh4 {[%clk 0:00:52.6]} 31. Qd2 {[%clk 0:00:11.7]} 31... Nxf3 {[%clk 0:00:51.4]}
32. Qc3 {[%clk 0:00:11.1]} 32... Qg6 {[%clk 0:00:50.6]} 33. Nd7 {[%clk
0:00:08.2]} 33... Bc6 {[%clk 0:00:47.7]} 34. Nc5 {[%clk 0:00:06.3]} 34... Nh4
{[%clk 0:00:45.7]} 35. Nxe6 {[%clk 0:00:06]} 35... Qe4 {[%clk 0:00:44.8]} 36. d5
{[%clk 0:00:04.8]} 36... Bxd5 {[%clk 0:00:43.2]} 37. Qc8+ {[%clk 0:00:03.9]}
37... Kh7 {[%clk 0:00:43.2]} 38. Nf8+ {[%clk 0:00:01.2]} 38... Bxf8 {[%clk
0:00:43.2]} 39. Qxf8 {[%clk 0:00:02]} 39... Qf3+ {[%clk 0:00:43.1]} 40. Ke1
{[%clk 0:00:02.2]} 40... Qxe3+ {[%clk 0:00:43.3]} 41. Kd1 {[%clk 0:00:02.7]}
41... Qd3+ {[%clk 0:00:42.3]} 42. Ke1 {[%clk 0:00:02.6]} 42... Ng2+ {[%clk
0:00:41.4]} 43. Kf2 {[%clk 0:00:02.3]} 43... Qe3+ {[%clk 0:00:41.6]} 0-1

[Event "*** Titled Tuesday Blitz"]
[Site "Chess.com"]
[Date "2021.03.16"]
[Round "3"]
[White "ShahMatKanal"]
[Black "QuintilianoR"]
[Result "0-1"]
[WhiteElo "2479"]
[BlackElo "2734"]
[TimeControl "180+1"]
[EndTime "10:28:08 PDT"]
[Termination "QuintilianoR won by resignation"]

1. d4 {[%clk 0:03:00.9]} 1... Nf6 {[%clk 0:02:58.9]} 2. Nf3 {[%clk 0:03:00.5]}
2... e6 {[%clk 0:02:59.4]} 3. c4 {[%clk 0:02:59.4]} 3... b6 {[%clk 0:02:58.4]}
4. g3 {[%clk 0:02:58.8]} 4... Bb7 {[%clk 0:02:58.7]} 5. Bg2 {[%clk 0:02:58.8]}
5... Bb4+ {[%clk 0:02:59.3]} 6. Bd2 {[%clk 0:02:57.8]} 6... a5 {[%clk
0:02:59.7]} 7. O-O {[%clk 0:02:56.1]} 7... O-O {[%clk 0:03:00.2]} 8. Nc3 {[%clk
0:02:50.9]} 8... d6 {[%clk 0:02:59.1]} 9. Qc2 {[%clk 0:02:43.7]} 9... Nbd7
{[%clk 0:02:58]} 10. Bg5 {[%clk 0:02:29.7]} 10... Bxc3 {[%clk 0:02:52.2]} 11.
Qxc3 {[%clk 0:02:21.2]} 11... h6 {[%clk 0:02:52.4]} 12. Bxf6 {[%clk 0:02:18.6]}
12... Nxf6 {[%clk 0:02:53.3]} 13. Nd2 {[%clk 0:02:15]} 13... Bxg2 {[%clk
0:02:50.8]} 14. Kxg2 {[%clk 0:02:15.9]} 14... Qe7 {[%clk 0:02:44.9]} 15. e4
{[%clk 0:02:15]} 15... e5 {[%clk 0:02:44.6]} 16. d5 {[%clk 0:02:15]} 16... Nd7
{[%clk 0:02:36.9]} 17. b3 {[%clk 0:02:11.5]} 17... f5 {[%clk 0:02:32]} 18. exf5
{[%clk 0:01:57.3]} 18... Rxf5 {[%clk 0:02:32.9]} 19. Ne4 {[%clk 0:01:48.9]}
19... Nc5 {[%clk 0:02:23.9]} 20. Nxc5 {[%clk 0:01:38]} 20... bxc5 {[%clk
0:02:24.8]} 21. a3 {[%clk 0:01:30.7]} 21... h5 {[%clk 0:02:02.7]} 22. h4 {[%clk
0:01:22.8]} 22... e4 {[%clk 0:01:52.8]} 23. Rae1 {[%clk 0:01:18.7]} 23... Rf3
{[%clk 0:01:28.2]} 24. Re3 {[%clk 0:01:14.3]} 24... Rxe3 {[%clk 0:01:20.1]} 25.
Qxe3 {[%clk 0:01:10.6]} 25... Qe5 {[%clk 0:01:13.9]} 26. Re1 {[%clk 0:01:03.8]}
26... Re8 {[%clk 0:01:13.4]} 27. Qd2 {[%clk 0:00:53.4]} 27... Rb8 {[%clk
0:00:48.8]} 28. Qxa5 {[%clk 0:00:50.1]} 28... Rxb3 {[%clk 0:00:48.3]} 29. Qxc7
{[%clk 0:00:50]} 29... e3 {[%clk 0:00:43.5]} 30. Qd8+ {[%clk 0:00:35.9]} 30...
Kh7 {[%clk 0:00:42.9]} 31. Qg5 {[%clk 0:00:36.5]} 31... Qxg5 {[%clk 0:00:35]}
32. hxg5 {[%clk 0:00:37.4]} 32... exf2 {[%clk 0:00:35.1]} 33. Re6 {[%clk
0:00:32.7]} 33... Rxg3+ {[%clk 0:00:30]} 34. Kxf2 {[%clk 0:00:32.4]} 34... Rxa3
{[%clk 0:00:28.9]} 35. Rxd6 {[%clk 0:00:20.1]} 35... Rc3 {[%clk 0:00:28.9]} 36.
Rc6 {[%clk 0:00:17.4]} 36... Rxc4 {[%clk 0:00:29.1]} 37. d6 {[%clk 0:00:15.4]}
37... Rd4 {[%clk 0:00:29]} 38. Rxc5 {[%clk 0:00:05.6]} 38... Rxd6 {[%clk
0:00:28.5]} 39. Kg3 {[%clk 0:00:04.6]} 39... Kg6 {[%clk 0:00:28.5]} 40. Rb5
{[%clk 0:00:02.9]} 40... Rd4 {[%clk 0:00:26.1]} 41. Kf3 {[%clk 0:00:02.7]} 41...
Rg4 {[%clk 0:00:25.8]} 0-1

[Event "*** Titled Tuesday Blitz"]
[Site "Chess.com"]
[Date "2021.03.16"]
[Round "3"]
[White "profofchess"]
[Black "Szparu"]
[Result "1-0"]
[WhiteElo "2446"]
[BlackElo "2638"]
[TimeControl "180+1"]
[EndTime "10:28:08 PDT"]
[Termination "profofchess won on time"]

1. e4 {[%clk 0:03:00.9]} 1... c5 {[%clk 0:02:58.7]} 2. Nf3 {[%clk 0:03:00.5]}
2... d6 {[%clk 0:02:57.7]} 3. d4 {[%clk 0:02:59.3]} 3... cxd4 {[%clk 0:02:57.8]}
4. Qxd4 {[%clk 0:03:00.2]} 4... Nf6 {[%clk 0:02:56.7]} 5. Be2 {[%clk 0:02:55.9]}
5... Nc6 {[%clk 0:02:54.6]} 6. Qe3 {[%clk 0:02:56.1]} 6... g6 {[%clk 0:02:54.1]}
7. O-O {[%clk 0:02:54.7]} 7... Bg7 {[%clk 0:02:54.6]} 8. Rd1 {[%clk 0:02:54.7]}
8... O-O {[%clk 0:02:51.9]} 9. h3 {[%clk 0:02:54.7]} 9... Be6 {[%clk 0:02:23.1]}
10. c4 {[%clk 0:02:53.4]} 10... Nd7 {[%clk 0:02:11.9]} 11. Nc3 {[%clk
0:02:50.2]} 11... Nc5 {[%clk 0:02:09.4]} 12. Bd2 {[%clk 0:02:36.6]} 12... f5
{[%clk 0:02:00.3]} 13. exf5 {[%clk 0:02:30.7]} 13... gxf5 {[%clk 0:01:57.2]} 14.
Nd5 {[%clk 0:01:11.6]} 14... Ne4 {[%clk 0:01:44.5]} 15. Be1 {[%clk 0:01:04.8]}
15... Bf7 {[%clk 0:01:42.9]} 16. Nd2 {[%clk 0:00:48.9]} 16... Bd4 {[%clk
0:01:13.5]} 17. Qd3 {[%clk 0:00:48.5]} 17... e6 {[%clk 0:01:01.9]} 18. Nxe4
{[%clk 0:00:36.9]} 18... exd5 {[%clk 0:00:39.3]} 19. Ng3 {[%clk 0:00:27.3]}
19... f4 {[%clk 0:00:33.2]} 20. Nh5 {[%clk 0:00:15.2]} 20... Qg5 {[%clk
0:00:22.4]} 21. cxd5 {[%clk 0:00:10.4]} 21... Bxd5 {[%clk 0:00:21.9]} 22. Bf3
{[%clk 0:00:10.7]} 22... Bxf3 {[%clk 0:00:14.5]} 23. Qxf3 {[%clk 0:00:11.6]}
23... Kh8 {[%clk 0:00:10.5]} 24. Bc3 {[%clk 0:00:10.1]} 24... Bxc3 {[%clk
0:00:09.9]} 25. Qxc3+ {[%clk 0:00:09.1]} 25... Ne5 {[%clk 0:00:10.5]} 26. Rxd6
{[%clk 0:00:04.4]} 26... Rac8 {[%clk 0:00:10.3]} 27. Qd4 {[%clk 0:00:03.5]}
27... Rc4 {[%clk 0:00:08.1]} 28. Qd5 {[%clk 0:00:03.1]} 28... Qxh5 {[%clk
0:00:04.2]} 29. Re1 {[%clk 0:00:03.6]} 29... Re8 {[%clk 0:00:04.3]} 30. Rd8
{[%clk 0:00:03.6]} 30... Rc8 {[%clk 0:00:03.5]} 31. Rxc8 {[%clk 0:00:03.2]}
31... Nf3+ {[%clk 0:00:03]} 32. Qxf3 {[%clk 0:00:02.9]} 32... Qxf3 {[%clk
0:00:03.4]} 33. Rexe8+ {[%clk 0:00:02.8]} 1-0

[Event "*** Titled Tuesday Blitz"]
[Site "Chess.com"]
[Date "2021.03.16"]
[Round "3"]
[White "vovachesss"]
[Black "GigaQuparadze"]
[Result "1-0"]
[WhiteElo "2753"]
[BlackElo "2944"]
[TimeControl "180+1"]
[EndTime "10:28:12 PDT"]
[Termination "vovachesss won by checkmate"]

1. d4 {[%clk 0:03:00.9]} 1... Nf6 {[%clk 0:02:59.6]} 2. Bf4 {[%clk 0:03:01.1]}
2... b6 {[%clk 0:02:59.2]} 3. Nf3 {[%clk 0:03:00.6]} 3... Bb7 {[%clk 0:02:59.4]}
4. e3 {[%clk 0:03:01.3]} 4... g6 {[%clk 0:02:59.2]} 5. h3 {[%clk 0:03:01.9]}
5... Bg7 {[%clk 0:02:59]} 6. c4 {[%clk 0:03:02.6]} 6... O-O {[%clk 0:02:58.8]}
7. Nc3 {[%clk 0:03:02.5]} 7... d6 {[%clk 0:02:58.8]} 8. Be2 {[%clk 0:03:02.2]}
8... Nbd7 {[%clk 0:02:58.7]} 9. O-O {[%clk 0:03:02.2]} 9... Re8 {[%clk 0:02:59]}
10. Bh2 {[%clk 0:03:01.8]} 10... e5 {[%clk 0:02:56.6]} 11. dxe5 {[%clk
0:03:01.8]} 11... dxe5 {[%clk 0:02:57.5]} 12. Qc2 {[%clk 0:03:00.7]} 12... Qe7
{[%clk 0:02:52.5]} 13. Rfd1 {[%clk 0:03:00.3]} 13... a6 {[%clk 0:02:46.7]} 14.
Nd5 {[%clk 0:02:53.1]} 14... Nxd5 {[%clk 0:02:46.2]} 15. cxd5 {[%clk 0:02:54]}
15... Rac8 {[%clk 0:02:45.3]} 16. e4 {[%clk 0:02:52.5]} 16... c5 {[%clk
0:02:35.7]} 17. a4 {[%clk 0:02:13.8]} 17... c4 {[%clk 0:02:28.7]} 18. Nd2 {[%clk
0:01:41.7]} 18... b5 {[%clk 0:02:25.9]} 19. axb5 {[%clk 0:01:41.5]} 19... axb5
{[%clk 0:02:26.8]} 20. Nf1 {[%clk 0:01:38.1]} 20... Nc5 {[%clk 0:02:26]} 21. Ra7
{[%clk 0:01:35.3]} 21... Nb3 {[%clk 0:02:21.9]} 22. d6 {[%clk 0:01:32.2]} 22...
Qd7 {[%clk 0:02:21.9]} 23. Rxb7 {[%clk 0:01:32.5]} 23... Qxb7 {[%clk 0:02:19.2]}
24. d7 {[%clk 0:01:33.4]} 24... Nd4 {[%clk 0:02:19]} 25. dxe8=Q+ {[%clk
0:01:28.2]} 25... Rxe8 {[%clk 0:02:18.1]} 26. Qd2 {[%clk 0:01:28]} 26... Qxe4
{[%clk 0:02:17.6]} 27. Bf3 {[%clk 0:01:16.6]} 27... Nxf3+ {[%clk 0:02:09.3]} 28.
gxf3 {[%clk 0:01:17.5]} 28... Qxf3 {[%clk 0:02:09.8]} 29. Qd7 {[%clk 0:01:11.1]}
29... Rf8 {[%clk 0:02:06.3]} 30. Ne3 {[%clk 0:01:10.7]} 30... h5 {[%clk
0:01:53.1]} 31. Qxb5 {[%clk 0:01:10.3]} 31... Qxh3 {[%clk 0:01:51.1]} 32. Qxc4
{[%clk 0:01:09]} 32... Bh6 {[%clk 0:01:49.3]} 33. Nd5 {[%clk 0:01:05]} 33... Qe6
{[%clk 0:01:39.6]} 34. Re1 {[%clk 0:00:57.4]} 34... Bg7 {[%clk 0:01:39]} 35. b3
{[%clk 0:00:50.8]} 35... Rd8 {[%clk 0:01:37.6]} 36. Nc3 {[%clk 0:00:37.6]} 36...
Qd7 {[%clk 0:01:30.1]} 37. Rd1 {[%clk 0:00:23.4]} 37... Qe7 {[%clk 0:01:28.5]}
38. Rxd8+ {[%clk 0:00:23.7]} 38... Qxd8 {[%clk 0:01:29.4]} 39. Kf1 {[%clk
0:00:15.5]} 39... Qd2 {[%clk 0:01:26.3]} 40. Ne4 {[%clk 0:00:07.3]} 40... Qd1+
{[%clk 0:01:25.3]} 41. Kg2 {[%clk 0:00:07]} 41... Qg4+ {[%clk 0:01:24]} 42. Bg3
{[%clk 0:00:04.6]} 42... Qd7 {[%clk 0:01:22.2]} 43. b4 {[%clk 0:00:03.6]} 43...
Kh7 {[%clk 0:01:11.6]} 44. b5 {[%clk 0:00:04.2]} 44... f5 {[%clk 0:01:11.6]} 45.
Ng5+ {[%clk 0:00:04.8]} 45... Kh6 {[%clk 0:01:11.3]} 46. Nf7+ {[%clk 0:00:05.5]}
46... Kh7 {[%clk 0:01:11.6]} 47. Nxe5 {[%clk 0:00:06.1]} 47... Qe7 {[%clk
0:01:10.3]} 48. Nf3 {[%clk 0:00:06.4]} 48... g5 {[%clk 0:01:04.1]} 49. Qd5
{[%clk 0:00:06.8]} 49... g4 {[%clk 0:00:58.4]} 50. Qxf5+ {[%clk 0:00:06.6]}
50... Kg8 {[%clk 0:00:58.7]} 51. Ng5 {[%clk 0:00:06.9]} 51... Qb7+ {[%clk
0:00:58.1]} 52. Qe4 {[%clk 0:00:06.6]} 52... Qxb5 {[%clk 0:00:55.8]} 53. Qe6+
{[%clk 0:00:07]} 53... Kh8 {[%clk 0:00:55.9]} 54. Qc8+ {[%clk 0:00:07.5]} 54...
Bf8 {[%clk 0:00:53.8]} 55. Qxf8# {[%clk 0:00:07.6]} 1-0

[Event "*** Titled Tuesday Blitz"]
[Site "Chess.com"]
[Date "2021.03.16"]
[Round "3"]
[White "zverr1"]
[Black "Darius321"]
[Result "1-0"]
[WhiteElo "2463"]
[BlackElo "2262"]
[TimeControl "180+1"]
[EndTime "10:28:14 PDT"]
[Termination "zverr1 won on time"]

1. e4 {[%clk 0:03:00.9]} 1... e5 {[%clk 0:02:55.3]} 2. f4 {[%clk 0:02:59.3]}
2... exf4 {[%clk 0:02:53.6]} 3. Nc3 {[%clk 0:02:58.7]} 3... Nf6 {[%clk
0:02:46.9]} 4. Nf3 {[%clk 0:02:44.9]} 4... d5 {[%clk 0:02:44.3]} 5. exd5 {[%clk
0:02:42.7]} 5... Nxd5 {[%clk 0:02:42.8]} 6. Bc4 {[%clk 0:02:43.2]} 6... Be6
{[%clk 0:02:31.9]} 7. Bxd5 {[%clk 0:02:32.5]} 7... Bxd5 {[%clk 0:02:31.3]} 8.
O-O {[%clk 0:02:33.4]} 8... Bc5+ {[%clk 0:01:59]} 9. d4 {[%clk 0:02:32.2]} 9...
Bxf3 {[%clk 0:01:58.7]} 10. Qxf3 {[%clk 0:02:31.2]} 10... Bxd4+ {[%clk
0:01:49.7]} 11. Kh1 {[%clk 0:02:28.9]} 11... Nc6 {[%clk 0:01:49]} 12. Re1+
{[%clk 0:02:12.9]} 12... Kf8 {[%clk 0:01:28]} 13. Bxf4 {[%clk 0:02:06.5]} 13...
Bxc3 {[%clk 0:01:24.5]} 14. bxc3 {[%clk 0:02:00.8]} 14... h5 {[%clk 0:01:20.3]}
15. Rad1 {[%clk 0:01:58]} 15... Qf6 {[%clk 0:01:16.4]} 16. Qe3 {[%clk
0:01:44.8]} 16... h4 {[%clk 0:01:05.2]} 17. Bxc7 {[%clk 0:01:36.7]} 17... h3
{[%clk 0:01:03.7]} 18. gxh3 {[%clk 0:01:26.5]} 18... Rh5 {[%clk 0:00:54.5]} 19.
Rf1 {[%clk 0:01:12.4]} 19... Rf5 {[%clk 0:00:51.2]} 20. Qe2 {[%clk 0:01:01.6]}
20... Re8 {[%clk 0:00:46.5]} 21. Bd6+ {[%clk 0:00:44.5]} 21... Qxd6 {[%clk
0:00:46.4]} 22. Rxd6 {[%clk 0:00:45.4]} 22... Rxe2 {[%clk 0:00:43.3]} 23. Rxf5
{[%clk 0:00:45.5]} 23... Rxc2 {[%clk 0:00:39.1]} 24. Rd7 {[%clk 0:00:45.3]}
24... f6 {[%clk 0:00:36]} 25. Rxb7 {[%clk 0:00:35.9]} 25... Rxa2 {[%clk
0:00:35.7]} 26. Rc5 {[%clk 0:00:33.8]} 26... Ra6 {[%clk 0:00:27.2]} 27. Kg2
{[%clk 0:00:23.9]} 27... Kg8 {[%clk 0:00:27.1]} 28. Kg3 {[%clk 0:00:24.1]} 28...
Kh7 {[%clk 0:00:21.7]} 29. h4 {[%clk 0:00:24.3]} 29... Kh6 {[%clk 0:00:19.6]}
30. h3 {[%clk 0:00:21.2]} 30... Ne5 {[%clk 0:00:15.1]} 31. Rcc7 {[%clk
0:00:17.5]} 31... Ra3 {[%clk 0:00:14]} 32. Rxa7 {[%clk 0:00:16.9]} 32... Rb3
{[%clk 0:00:11.2]} 33. Rab7 {[%clk 0:00:15.4]} 33... Ra3 {[%clk 0:00:10.3]} 34.
Rc5 {[%clk 0:00:08.5]} 34... Ra1 {[%clk 0:00:05.8]} 35. Rb6 {[%clk 0:00:07.7]}
35... Rg1+ {[%clk 0:00:04.6]} 36. Kf2 {[%clk 0:00:08.1]} 1-0